Cogmind - Beta 15 @@@ ROGUE MODE // 2025.05.25 @ 16:33:57 Player: Kemowoomy Result: Self-destructed Performance ------------- Evolutions (2) 1000 Regions Visited (4) 800 Robots Destroyed (21) 105 Value Destroyed (453) 453 Prototype IDs (3) 60 Alien Tech Used (0) 0 Bonus (0) 0 TOTAL SCORE: 2418 Bonus ------- None Cogmind --------- Core Integrity 506/550 Matter 212/300 Energy 280/280 System Corruption 0% Temperature Cool (0) Movement Treading (155) Location -8/Materials Parts ------- > --- POWER (2) -------- Heavy Ion Engine > --- PROPULSION (3) --- Light Treads Light Treads Advanced Treads > --- UTILITY (3) ------ ECM Suite > --- WEAPON (3) ------- Light Assault Rifle Light Assault Rifle > --- INVENTORY (5) ---- Light Ion Engine Aluminum Leg Small Storage Unit Peak State ------------ > --- POWER ------------ Ion Engine Heavy Ion Engine > --- PROPULSION ------- Aluminum Leg Aluminum Leg > --- UTILITY ---------- Small Storage Unit ECM Suite > --- WEAPON ----------- Light Assault Rifle Light Assault Rifle Heavy Assault Rifle > --- INVENTORY -------- (None) [Rating: 12] Favorites ----------- Power Light Ion Engine Engine Light Ion Engine Propulsion Aluminum Leg Treads Light Treads Leg Aluminum Leg Utility Small Storage Unit Device ECM Suite Storage Small Storage Unit Weapon Heavy Assault Rifle Ballistic Gun Heavy Assault Rifle Build | -11 -10 -9 -9 -8 ------- Run | Yrd Mat Mat Min Mat Slots Evolved 4 | . . 2 . 2 Power 1 | . . . . 1 Propulsion 1 | . . 1 . . Utility 1 | . . . . 1 Weapon 1 | . . 1 . . Parts Attached 16 | 5 5 1 1 4 Power 3 | 1 . . 1 1 Engine 3 | 1 . . 1 1 Core . | . . . . . Reactor . | . . . . . Propulsion 7 | 2 1 1 . 3 Treads 3 | . . . . 3 Leg 4 | 2 1 1 . . Wheel . | . . . . . Hover . | . . . . . Flight . | . . . . . Utility 2 | . 2 . . . Device 1 | . 1 . . . Storage 1 | . 1 . . . Processor . | . . . . . Hackware . | . . . . . Protection . | . . . . . Artifact . | . . . . . Weapon 4 | 2 2 . . . Energy Gun . | . . . . . Energy Cannon . | . . . . . Ballistic Gun 4 | 2 2 . . . Ballistic Cannon . | . . . . . Launcher . | . . . . . Special Weapon . | . . . . . Impact Weapon . | . . . . . Slashing Weapon . | . . . . . Piercing Weapon . | . . . . . Special Melee Weapon . | . . . . . Unidentified Prototypes 1 | . . . . 1 Parts Lost 6 | . . 1 2 3 Power 2 | . . . 1 1 Propulsion 2 | . . 1 . 1 Utility . | . . . . . Weapon 2 | . . . 1 1 Highest Loss Streak 3 | . . 1 2 3 To Critical Strikes . | . . . . . Average Backups 3 | 1 3 3 2 2 Power 1 | 1 1 1 1 . Propulsion . | . . . . . Utility . | . . . . . Weapon 1 | . 1 1 1 . Tool/Special . | . . . . . Unused Backups 1 | . . 1 . . Power . | . . . . . Propulsion . | . . . . . Utility . | . . . . . Weapon 1 | . . 1 . . Tool/Special . | . . . . . Average Slot Usage (%) 88 | . 93 94 80 56 Engine 12 | . 14 11 11 13 Leg 26 | . 28 28 22 12 Device 9 | . 8 11 11 7 Storage 11 | . 13 11 11 . Ballistic Gun 28 | . 28 31 25 19 Peak Build Rating 12 | 5 9 11 10 12 Average Rating 8 | 3 8 10 8 9 On Entrance 6 | . 5 9 10 8 Naked Turns . | . . . . . Heaviest Build 20 | 5 16 17 19 20 Greatest Support 62 | 20 20 30 20 62 Greatest Overweight (x) 2 | . . . . 2 Average Overweight (x) . | . . . . . Largest Inventory Capacity 8 | 5 8 8 8 8 Average Capacity 7 | 5 7 8 8 5 Most Carried 5 | 5 4 5 3 5 Average Carried 3 | 2 3 3 2 2 Final Capacity 8 | 5 8 8 8 5 Final Carried 4 | 2 4 3 2 3 Class Distribution -------------------- 62% | Mutant 37% | Gunner Dominant Class ---------------- Mutant | -10/Materials Gunner | -9/Materials Mutant | -9/Mines Gunner | -8/Materials Resources | -11 -10 -9 -9 -8 ----------- Run | Yrd Mat Mat Min Mat Matter Collected 746 | 230 326 42 62 86 Remotely . | . . . . . Salvage Created 707 | . 579 42 . 86 Parts 46 | . 35 4 . 7 Haulers Intercepted 2 | . 2 . . . Recyclers Shooed 2 | . 1 . 1 . Parts Field Recycled . | . . . . . Retrieved Matter . | . . . . . Parts Self-Destructed . | . . . . . Prevented . | . . . . . Kills | -11 -10 -9 -9 -8 ------- Run | Yrd Mat Mat Min Mat Combat Hostiles Destroyed 13 | . 8 2 . 3 Guns 13 | . 8 2 . 3 Classes Destroyed 7 | . 5 1 . 1 Worker 3 | . 3 . . . Builder 2 | . 2 . . . Hauler 2 | . 2 . . . Operator 1 | . 1 . . . Swarmer 3 | . . 1 . 2 Grunt 9 | . 8 1 . . Sentry 1 | . . . . 1 Best Kill Streak 4 | . 4 1 . 3 Combat Bots Only 3 | . 2 1 . 3 Max Kills in Single Turn 1 | . 1 1 . 1 Gunslinging . | . . . . . Exploded . | . . . . . Melee . | . . . . . Uniques/NPCs Destroyed . | . . . . . Combat | -11 -10 -9 -9 -8 -------- Run | Yrd Mat Mat Min Mat Hostile Shots Fired 122 | . 41 17 37 27 Missed 38 | . 11 8 13 6 Hits 84 | . 30 9 24 21 Projectile 84 | . 30 9 24 21 AOE 5 | . . . 5 . Critical Strikes 2 | . 2 . . . Damage Taken 1070 | . 412 85 348 225 Core 95 | . 29 . 22 44 Absorbed by Shields . | . . . . . Regen/Repaired (Parts) 92 | . . 92 . . Core Remaining (%) 94 | 100 88 . 94 . Volleys Fired 71 | . 47 4 9 11 Largest 3 | . 2 3 2 3 Hottest 66 | . 46 66 43 63 Shots Fired 155 | . 94 12 18 31 Gun 155 | . 94 12 18 31 Cannon . | . . . . . Launcher . | . . . . . Special . | . . . . . Kinetic 155 | . 94 12 18 31 Thermal . | . . . . . Explosive . | . . . . . Electromagnetic . | . . . . . Robot Hit Streak 10 | . 10 8 6 8 Robot Miss Streak 7 | . 6 7 4 6 Penetration Max . | . . . . . Secondary Targets 1 | . 1 . . . Max Gunslinging Chain 1 | . 1 . . . Shots Hit Robots 86 | . 53 9 9 15 Core Hits 35 | . 25 2 1 7 Critical Kills . | . . . . . Critical Parts Destroyed 1 | . . . . 1 Critical Strikes 1 | . . . . 1 Destroy 1 | . . . . 1 Melee Attacks . | . . . . . Impact . | . . . . . Slashing . | . . . . . Piercing . | . . . . . Sneak Attacks . | . . . . . Combat Hostiles . | . . . . . Follow-up Attacks . | . . . . . Damage Inflicted 1207 | . 809 128 123 147 Guns 1200 | . 807 123 123 147 Cannons . | . . . . . Explosions . | . . . . . Melee . | . . . . . Ramming 7 | . 2 5 . . Kinetic 1200 | . 807 123 123 147 Thermal . | . . . . . Explosive . | . . . . . Electromagnetic . | . . . . . Impact . | . . . . . Slashing . | . . . . . Piercing . | . . . . . Highest Corruption . | . . . . . Average Corruption . | . . . . . Corruption Purged . | . . . . . Corruption Blocked . | . . . . . Overload Shots . | . . . . . Overflow Damage . | . . . . . Projectiles . | . . . . . Explosions . | . . . . . Melee . | . . . . . Knockbacks . | . . . . . Impact . | . . . . . Kinetic . | . . . . . Secondary . | . . . . . Self-Inflicted Damage . | . . . . . Shots . | . . . . . Rammed . | . . . . . Targets Rammed 4 | . 1 3 . . Kicked 4 | . 1 3 . . Crushed . | . . . . . Highest Temperature 65 | . 39 5 . 65 Average Temperature 18 | . 11 3 . 28 Received Heat Transfer 330 | . 261 24 . 45 Siege Activations . | . . . . . Martial Activations . | . . . . . Shielding Activations . | . . . . . Robots Disrupted . | . . . . . Combat Hostiles . | . . . . . Robots Corrupted . | . . . . . Combat Hostiles . | . . . . . Parts Fried . | . . . . . Impact Corruptions . | . . . . . Robots Melted . | . . . . . Combat Hostiles . | . . . . . Parts Melted . | . . . . . Heat Transferred . | . . . . . Parts Sabotaged . | . . . . . Parts Stolen . | . . . . . Parts Stripped . | . . . . . Power Chain Reactions . | . . . . . Alert | -11 -10 -9 -9 -8 ------- Run | Yrd Mat Mat Min Mat Maximum Alert Level . | . . . . . Low Security (%) 100 | 100 100 100 100 100 Level 1 . | . . . . . Level 2 . | . . . . . Level 3 . | . . . . . Level 4 . | . . . . . Level 5 . | . . . . . High Security . | . . . . . Max Security . | . . . . . Peak Influence 79 | . 79 30 8 30 Initial 8 | . . 3 8 . Average 15 | . 25 5 1 7 Influence Increases 402 | . 266 66 . 70 Destroy 0b10 Robot/C 260 | . 160 40 . 60 Destroy 0b10 Robot/NC 40 | . 40 . . . Destroy Leader 74 | . 44 20 . 10 Successful Hack 10 | . 5 5 . . Destroy Structure 3 | . 2 1 . . Partial Spotted 15 | . 15 . . . Influence Decreases 382 | . 258 52 22 50 Entered New Map 19 | . . 5 14 . Time Decay 343 | . 258 47 8 30 Lost Part 20 | . . . . 20 Squads Dispatched 5 | . 2 2 . 1 Investigation . | . . . . . Extermination . | . . . . . Reinforcement 5 | . 2 2 . 1 Assault . | . . . . . Garrison . | . . . . . Intercept . | . . . . . Searches Triggered . | . . . . . Construction Impeded . | . . . . . Haulers Reinforced . | . . . . . Active Scanning Responses . | . . . . . Cargo Convoy Interrupts . | . . . . . Stealth | -11 -10 -9 -9 -8 --------- Run | Yrd Mat Mat Min Mat Distress Signals 3 | . 1 . . 2 Communications Jammed . | . . . . . Distress Signals . | . . . . . Times Spotted 53 | . 21 17 6 9 Peak Tracking Total 7 | . 4 7 4 6 Tactical Retreats 6 | . 2 3 . 1 Traps | -11 -10 -9 -9 -8 ------- Run | Yrd Mat Mat Min Mat Traps Triggered . | . . . . . Indirectly . | . . . . . Trap Hack Attempts . | . . . . . Triggered . | . . . . . Disarmed . | . . . . . Reprogrammed . | . . . . . Reused . | . . . . . Traps Extracted . | . . . . . Installed . | . . . . . Triggered . | . . . . . Machines | -11 -10 -9 -9 -8 ---------- Run | Yrd Mat Mat Min Mat Machines Disabled . | . . . . . Max in Single Turn . | . . . . . Machines Repaired . | . . . . . Machines Dismantled . | . . . . . Machines Sabotaged . | . . . . . Overloaded Fab Kills . | . . . . . Hacking | -11 -10 -9 -9 -8 --------- Run | Yrd Mat Mat Min Mat Machines Accessed 4 | . 2 2 . . Terminals 3 | . 2 1 . . Fabricators . | . . . . . Repair Stations 1 | . . 1 . . Recycling Units . | . . . . . Scanalyzers . | . . . . . Garrison Access . | . . . . . Total Hacks 7 | . 4 3 . . Successful 4 | . 2 2 . . Failed 3 | . 2 1 . . Catastrophic . | . . . . . Database Lockouts . | . . . . . Manual 1 | . . 1 . . Terminals 5 | . 4 1 . . Fabricators . | . . . . . Repair Stations 2 | . . 2 . . Recycling Units . | . . . . . Scanalyzers . | . . . . . Garrison Access . | . . . . . Terminal Hacks 2 | . 2 . . . Prototype ID Bank 1 | . 1 . . . Hauler Manifests 1 | . 1 . . . Fabricator Hacks . | . . . . . Repair Station Hacks 2 | . . 2 . . Scan Component 1 | . . 1 . . Repair 1 | . . 1 . . Recycling Unit Hacks . | . . . . . Scanalyzer . | . . . . . Garrison Access Hacks . | . . . . . Unauthorized Hacks . | . . . . . Terminals . | . . . . . Fabricators . | . . . . . Repair Stations . | . . . . . Recycling Units . | . . . . . Scanalyzers . | . . . . . Garrison Access . | . . . . . Data Cores Recovered . | . . . . . Used . | . . . . . Hacking Detections 4 | . 2 2 . . Full Trace Events . | . . . . . Feedback Events . | . . . . . Feedback Blocked . | . . . . . Robot Schematics Acquired . | . . . . . Robots Built . | . . . . . Authchips . | . . . . . Time . | . . . . . Total Robot Build Rating . | . . . . . Part Schematics Acquired . | . . . . . Parts Built . | . . . . . Authchips . | . . . . . Time . | . . . . . Total Part Build Rating . | . . . . . Parts Repaired 1 | . . 1 . . Time 32 | . . 32 . . Parts Recycled . | . . . . . Recycled Matter . | . . . . . Retrieved Matter . | . . . . . Retrieved Components . | . . . . . Parts Scanalyzed . | . . . . . Part Schematics Acquired . | . . . . . Parts Damaged . | . . . . . Bothacking | -11 -10 -9 -9 -8 ------------ Run | Yrd Mat Mat Min Mat Used RIF Installer . | . . . . . Robots Hacked . | . . . . . Non-combat . | . . . . . Combat . | . . . . . Robot Hacks Applied . | . . . . . Relay Couplers Released . | . . . . . Fabnet Peak Effective % . | . . . . . Robots Rewired . | . . . . . Allies Hacked . | . . . . . Hacks Repelled . | . . . . . Allies | -11 -10 -9 -9 -8 -------- Run | Yrd Mat Mat Min Mat Total Allies . | . . . . . Largest Group . | . . . . . Highest-Rated Group . | . . . . . Highest-Rated Ally . | . . . . . Total Orders . | . . . . . Ally Attacks . | . . . . . Total Damage . | . . . . . Kills . | . . . . . Allies Corrupted . | . . . . . Allies Melted . | . . . . . Intel | -11 -10 -9 -9 -8 ------- Run | Yrd Mat Mat Min Mat Active Infowar (turns) 1073 | . 434 418 108 113 ECM 1073 | . 434 418 108 113 Robot Analysis Total . | . . . . . Derelict Logs Recovered . | . . . . . Drone Launches . | . . . . . Drone Recoveries . | . . . . . Exploration | -11 -10 -9 -9 -8 ------------- Run | Yrd Mat Mat Min Mat Turns Passed 1450 | 49 744 418 108 131 Spaces Moved 793 | 45 406 230 60 52 Core 25 | 23 . . . 2 Treads 7 | . . . . 7 Legs 761 | 22 406 230 60 43 Wheels . | . . . . . Hover . | . . . . . Flight . | . . . . . Fastest Speed 50 | 50 120 120 120 120 Average Speed 118 | 84 120 120 120 133 Slowest Speed 190 | 120 120 120 120 190 Overloaded Moves . | . . . . . Propulsion Burnouts . | . . . . . Robots Hopped . | . . . . . Potential Cave-ins . | . . . . . Cave-ins Triggered . | . . . . . Exploration Rate (%) 26 | 4 73 20 31 5 Regions Visited 4 Branch Regions 1 Pre-discovered Areas . | . . . . . Known Exits Taken . | . . . . . Unknown Exits Taken 4 | 1 1 1 1 . Scrap Searched . | . . . . . Spaces Dug . | . . . . . Terrain Destroyed . | . . . . . Melee . | . . . . . Projectile . | . . . . . AOE . | . . . . . Terrain Rammed . | . . . . . Walls Destroyed . | . . . . . Machines Disabled . | . . . . . Actions | -11 -10 -9 -9 -8 --------- Run | Yrd Mat Mat Min Mat Total 1160 | 56 567 363 80 94 Wait 238 | . 105 117 11 5 Move 789 | 44 405 229 59 52 Hop . | . . . . . Pick Up 26 | 7 4 4 . 11 Fast Attach . | . . . . . Attach 23 | 5 2 3 1 12 Detach 2 | . . . . 2 Swap 5 | . 3 1 . 1 Drop 2 | . . 2 . . Fire 71 | . 47 4 9 11 Melee . | . . . . . Ram . | . . . . . Kick 4 | . 1 3 . . Crush . | . . . . . Escape Stasis . | . . . . . Rewire . | . . . . . Trap . | . . . . . Miscellaneous . | . . . . . Route ------- -11/Scrapyard -10/Materials (discovered 2 exits: *Mat x2) -9/Materials -9/Mines -8/Materials History --------- Turn | Location | Event 2 | -11/Scrapyard | Met Revision 17 16 | -11/Scrapyard | Discovered new exit (range 15) 50 | -11/Scrapyard | Entered Materials 303 | -10/Materials | Build established: Mutant 403 | -10/Materials | Discovered new exit (range 16) 742 | -10/Materials | Discovered new exit (range 15) 794 | -10/Materials | Entered another Materials area 794 | -9/Materials | Evolved 2 slots: Propulsion x1, Weapon x1 936 | -9/Materials | Repaired Hvy. Assault Rifle 1195 | -9/Materials | Discovered new exit (range 7) 1212 | -9/Materials | Entered Mines 1222 | -9/Mines | Build established: Gunner 1248 | -9/Mines | Met a Derelict bent on vengeance 1312 | -9/Mines | Assembled infested the area 1313 | -9/Mines | Discovered new exit (range 5) 1317 | -9/Mines | Assisted by a Guerilla fighting off Assembled 1320 | -9/Mines | Entered Materials 1320 | -8/Materials | Evolved 2 slots: Power x1, Utility x1 1320 | -8/Materials | Released all parts (7) 1451 | -8/Materials | Self-destructed Last Messages --------------- 01410_ Y-45 Defender suffers critical hit (Destroy). 01410_ Destroyed Heat Sink. 01411_ R-06 Scavenger collects Lgt. Ion Engine. 01413_ Y-45 Defender destroyed. 01415_ R-06 Scavenger collects Beam Rifle. 01416_ W-25 Informer sends out distress signal. 01418_ K-01 Serf collects debris. 01419_ R-06 Scavenger collects Lgt. Armor Plating. 01420_ Acquired Lgt. Treads. 01421_ K-01 Serf collects debris. 01425_ Acquired Lgt. Treads. 01427_ Hvy. Assault Rifle destroyed. 01431_ K-01 Serf collects debris. 01432_ S-10 Pest destroyed. 01438_ Acquired 11 matter. 01441_ Acquired 60 matter. 01441_ K-01 Serf collects debris. 01444_ Acquired Lgt. Ion Engine. 01446_ K-01 Serf collects debris. 01450_ Acquired 15 matter. Map ----- +----------------------------------------------------+ | | | | | | | | | | | | | ?????????????????????????????????????????????????? | | ?????????????????????????????????????????????????? | | ?????????????????????????????????????????????????? | | ?????????????????????????????????????????????????? | | ?????????????????????????????????????????????????? | | ?????????????????????????????????????????????????? | | ?????????????????????????#####???????????????????? | | ?????????????????????????# #???????????????????? | | ?????????????????????????# #???????????????????? | | ?????????????????????????# #???????????????????? | | ??????????????????##+##### #???????????????????? | | ??????????????????# #########?#?????????? | | ??????????????????# # #?????????? | | ????????????# # """ """ #?????????? | | ????????????# ######### # """ """ #?????????? | | ????????????# ???????##??# # """ """ #?????????? | | ?????????????????????#T"?# # #?????????? | | ??????????????????#### "##mk + " " #?????????? | | ??????????????????# # "R" #?????????? | | ??????????????????# @ # """ #?????????? | | ??????????????????# #####+#####?????????? | | ??????????????????# ########???# ########??????? | | ??????????????????# ????????????# | | ??????????????????# ????????????+ | | ??????????????????+?????????????## = | | ?????????????????????????????????# ####### ? | | ?????????????????????????????????# #??????????#? | | ?????????????????????????????????# #???????????? | | ?????????????????????????????????# #???????????? | | ????????????????????????????????? #???????????? | | ????????????????????????????????? ???????????? | | ????????????????????????????????? #???????????? | | ?????????????????????????????????#####???????????? | | ?????????????????????????????????????????????????? | | ?????????????????????????????????????????????????? | | ?????????????????????????????????????????????????? | | ?????????????????????????????????????????????????? | | ?????????????????????????????????????????????????? | | ?????????????????????????????????????????????????? | | ?????????????????????????????????????????????????? | | ?????????????????????????????????????????????????? | | ?????????????????????????????????????????????????? | | ?????????????????????????????????????????????????? | | ?????????????????????????????????????????????????? | +----------------------------------------------------+ Best States ------------- Heat Dissipation 31 Energy Generation 19 Energy Capacity 430 Matter Stores 300 Matter Capacity 300 Sight Range 16 Terrain Scan Density 10 ECM Strength 1 Evasion (%) 55 Recoil Reduction 3 Item Schematics ----------------- None Robot Schematics ------------------ None Fabricated ------------ Nothing Repaired ---------- Hvy. Assault Rifle | 20% | -9/Materials Alien Tech Used ----------------- None Achievements -------------- None Challenges ------------ None Game ------ Seed SegregatorFieldthrustTorch Manual? 0 Play Time 00:28:04 Cumulative 26.1 hours Start 2025.05.25 @ 14:40:23 End 2025.05.25 @ 16:33:57 Sessions 1 Manual Loads 0 Difficulty Rogue Special Mode None Game No. 39 Rogue 39 Adventurer 0 Explorer 0 Win Type - Total 0 Types 0/0/0/0/0/0/0/0/0/0 Lore% 12 Gallery% 23 Achievement% 22 Wizard Run 0 Options --------- Layout 0 ASCII 1 Keyboard 1 Movement Numpad Keybinds 0 Fullscreen 1 Font 18/SmallcapsGlow Map View 112x50 Zoom Use 0% Tactical HUD 1 Map Filters NONE Filters NONE Steam 1 RUN: 679edc35-d08c-4ee3-bf3b-1f4989c54bb3